Cogmind - Beta 14 @@@ ROGUE MODE // 2024.10.15 @ 10:18:20 Player: Cmdr.Laserstrahl Result: Destroyed by S-27 Virus with Autogun Performance ------------- Evolutions (6) 3000 Regions Visited (14) 2800 Robots Destroyed (289) 1445 Value Destroyed (8433) 8433 Prototype IDs (41) 820 Alien Tech Used (0) 0 Bonus (4404) 4404 TOTAL SCORE: 20902 Bonus ------- Triggered High Security 500 High Alert Combat Kills 3116 Entered DSFs 500 Aligned with FarCom 300 Friendly Fire -12 Cogmind --------- Core Integrity 0/1150 Matter 260/300 Energy 37/295 System Corruption 10% Temperature Cool (0) Movement Rolling (130) Ox2 Location -4/DSF Parts ------- > --- POWER (2) -------- Fusion Reactor > --- PROPULSION (5) --- Myomer Leg Centrium Wheel Gyrokinetic Inverter Improved Linear Gravjet > --- UTILITY (9) ------ Advanced Heat Sink Advanced Heat Sink Advanced Cooling System Enhanced Optical Array Experimental Melee Analysis Suite Force Field Advanced Hacking Suite Trap Reconfigurator > --- WEAPON (3) ------- Hardcell Cannon Lance > --- INVENTORY (5) ---- Improved Transmission Jammer Advanced Field Recycling Unit (0) Plasma Rifle Advanced KE Penetrator Improved Plasma Cutter Peak State ------------ > --- POWER ------------ Fusion Reactor Fusion Reactor > --- PROPULSION ------- Myomer Leg Centrium Wheel Improved Gravmag System Gyrokinetic Inverter Improved Linear Gravjet > --- UTILITY ---------- Advanced Heat Sink Advanced Heat Sink Advanced Cooling System Enhanced Optical Array Experimental Melee Analysis Suite Force Field Advanced Hacking Suite Trap Reconfigurator > --- WEAPON ----------- Phase Cannon Hardcell Cannon Lance > --- INVENTORY -------- Improved Transmission Jammer Advanced Field Recycling Unit Plasma Rifle Advanced KE Penetrator Improved Plasma Cutter [Rating: 116] Favorites ----------- Power Improved Ion Engine Engine Improved Ion Engine Power Core Micro Fission Core Reactor Fusion Reactor Propulsion Wheel Leg Biometal Leg Wheel Wheel Hover Unit Combat Gravmag System Flight Unit Cooled VTOL Module Utility High-capacity Storage Unit Device Improved Cooling System Storage High-capacity Storage Unit Processor Improved Targeting Computer Hackware Advanced Hacking Suite Protection Hardened Medium Armor Plating Weapon Heavy Assault Rifle Energy Gun Beam Rifle Energy Cannon Cooled Particle Cannon Ballistic Gun Heavy Assault Rifle Ballistic Cannon Enhanced Gauss Cannon Launcher Rocket Launcher Special Weapon Improved Plasma Cutter Slashing Weapon Chainsword Piercing Weapon Lance Build | -11 -10 -10 -9 -9 -9 -8 -8 -7 -6 -5 -4 -4 -4 -4 ------- Run | Yrd Mat Min Mat Min Exi Min Mat Fac Fac Fac Fac Was Fac DSF Slots Evolved 12 | . . . 2 . . . 2 2 2 2 2 . . . Power 1 | . . . . . . . . . 1 . . . . . Propulsion 3 | . . . . . . . 1 1 1 . . . . . Utility 7 | . . . 1 . . . 1 1 . 2 2 . . . Weapon 1 | . . . 1 . . . . . . . . . . . Parts Attached 381 | 7 9 3 26 6 3 4 37 107 83 26 37 2 21 10 Power 31 | 1 . 1 3 1 . . 1 6 7 1 6 . 4 . Engine 20 | 1 . 1 3 1 . . 1 4 5 . 4 . . . Core 6 | . . . . . . . . 2 2 1 1 . . . Reactor 5 | . . . . . . . . . . . 1 . 4 . Propulsion 84 | 2 1 1 6 . . 1 5 22 24 7 7 1 5 2 Treads . | . . . . . . . . . . . . . . . Leg 4 | . . . . . . . . . 2 . . 1 . 1 Wheel 49 | 2 1 1 5 . . 1 5 18 15 . . . 1 . Hover 19 | . . . . . . . . . 2 6 7 . 4 . Flight 12 | . . . 1 . . . . 4 5 1 . . . 1 Utility 165 | 2 3 . 8 3 . . 14 60 36 10 13 1 9 6 Device 112 | 1 1 . 2 1 . . 6 48 24 7 10 1 5 6 Storage 7 | 1 2 . . . . . . 1 1 1 . . 1 . Processor 11 | . . . 1 . . . 1 1 5 1 1 . 1 . Hackware 2 | . . . . . . . . . . 1 . . 1 . Protection 33 | . . . 5 2 . . 7 10 6 . 2 . 1 . Artifact . | . . . . . . . . . . . . . . . Weapon 101 | 2 5 1 9 2 3 3 17 19 16 8 11 . 3 2 Energy Gun 16 | . . 1 2 . 1 . 5 6 . . . . . 1 Energy Cannon 19 | . . . . . . . . 4 6 6 2 . 1 . Ballistic Gun 40 | 2 3 . 7 2 2 1 9 5 6 . 3 . . . Ballistic Cannon 5 | . 1 . . . . . . 1 . 1 1 . . 1 Launcher 11 | . . . . . . 2 3 2 2 1 1 . . . Special Weapon 2 | . 1 . . . . . . . . . . . 1 . Impact Weapon . | . . . . . . . . . . . . . . . Slashing Weapon 3 | . . . . . . . . 1 2 . . . . . Piercing Weapon 5 | . . . . . . . . . . . 4 . 1 . Special Melee Weapon . | . . . . . . . . . . . . . . . Unidentified Prototypes 18 | . . . 2 1 . . 1 4 3 . 5 . 2 . Parts Lost 77 | . 1 . 1 . . . 2 8 32 3 23 . . 7 Power 9 | . . . . . . . 1 1 3 1 3 . . . Propulsion 34 | . 1 . 1 . . . . 4 17 1 8 . . 2 Utility 20 | . . . . . . . . 2 6 . 8 . . 4 Weapon 14 | . . . . . . . 1 1 6 1 4 . . 1 Highest Loss Streak 16 | . 1 . 1 . . . 1 2 16 1 10 . . 3 To Critical Strikes . | . . . . . . . . . . . . . . . Average Slot Usage (%) 92 | . 98 100 99 100 90 100 97 94 84 83 89 27 74 93 Engine 7 | . 14 14 11 11 11 11 8 6 9 4 3 . . . Wheel 19 | . 26 28 21 22 22 22 25 27 22 . . . 1 5 Hover 3 | . . . . . . . . . . 14 22 . 12 15 Flight 1 | . . . . . . . . 1 1 11 . . . 1 Device 8 | . 14 14 9 . . . 4 7 13 7 13 10 12 24 Storage 7 | . 14 14 11 11 11 11 9 7 4 2 4 . . . Processor 7 | . . . 1 11 11 11 9 6 5 18 15 15 16 10 Protection 8 | . . . 10 10 11 11 12 11 5 5 4 . 5 3 Energy Gun 4 | . . 3 11 11 7 11 9 6 . . . . . . Energy Cannon 3 | . . . . . . . . 6 6 5 4 . 3 5 Ballistic Gun 10 | . 20 24 21 22 15 17 13 6 8 . 2 . . . Peak Build Rating 116 | 7 8 10 18 23 19 19 40 51 63 91 114 39 115 116 Average Rating 43 | 5 7 9 16 17 16 19 29 42 47 70 95 31 85 108 On Entrance 33 | . 7 8 10 16 18 19 19 36 41 57 91 31 39 115 Naked Turns . | . . . . . . . . . . . . . . . Heaviest Build 102 | 14 49 51 62 61 61 62 74 92 102 42 66 3 43 57 Greatest Support 70 | 32 32 26 26 20 20 20 38 58 70 65 69 3 57 57 Greatest Overweight (x) 14 | . 1 1 5 3 3 3 3 14 3 2 1 . 1 2 Average Overweight (x) 1 | . . 1 2 2 2 3 1 1 . . . . . . Largest Inventory Capacity 20 | 8 20 20 20 20 20 20 20 20 20 10 10 5 15 5 Average Capacity 16 | 7 14 20 20 20 20 20 20 20 16 7 9 5 6 5 Most Carried 20 | 8 16 20 20 20 20 20 20 20 20 10 10 5 9 5 Average Carried 16 | 4 11 19 19 19 19 19 19 19 16 6 9 5 5 4 Final Capacity 20 | 8 20 20 20 20 20 20 20 20 5 10 5 5 5 5 Final Carried 20 | 8 16 20 20 20 20 20 20 20 5 10 5 5 5 5 Class Distribution -------------------- 35% | Scavenger-Tank 18% | Mutant 16% | Skirmisher 11% | Scavenger-Skirmisher 8% | Scavenger-Mutant 4% | Infiltrator-Mutant Dominant Class ---------------- Mutant | -10/Materials Scavenger-Mutant | -10/Mines Scavenger-Tank | -9/Materials Scavenger-Tank | -9/Mines Scavenger-Tank | -9/Exiles Scavenger-Skirmisher | -8/Mines Skirmisher | -8/Materials Skirmisher | -7/Factory Scavenger-Tank | -6/Factory Infiltrator-Mutant | -5/Factory Scavenger-Skirmisher | -4/Factory Mutant | -4/Waste Mutant | -4/Factory Infiltrator-Mutant | -4/DSF Resources | -11 -10 -10 -9 -9 -9 -8 -8 -7 -6 -5 -4 -4 -4 -4 ----------- Run | Yrd Mat Min Mat Min Exi Min Mat Fac Fac Fac Fac Was Fac DSF Matter Collected 7551 | 358 374 93 500 171 . 137 896 2207 1440 280 731 . 18 346 Remotely . | . . . . . . . . . . . . . . . Salvage Created 13088 | 139 395 104 955 241 . 141 1394 5436 2488 396 1041 . 18 340 Parts 657 | 13 30 6 67 18 . 11 111 216 103 18 40 . 3 21 Haulers Intercepted 11 | . . . 2 . . . 4 3 1 . 1 . . . Recyclers Shooed 24 | . 4 . 3 1 . 1 . 14 1 . . . . . Parts Field Recycled . | . . . . . . . . . . . . . . . Retrieved Matter . | . . . . . . . . . . . . . . . Parts Self-Destructed . | . . . . . . . . . . . . . . . Prevented . | . . . . . . . . . . . . . . . Kills | -11 -10 -10 -9 -9 -9 -8 -8 -7 -6 -5 -4 -4 -4 -4 ------- Run | Yrd Mat Min Mat Min Exi Min Mat Fac Fac Fac Fac Was Fac DSF Combat Hostiles Destroyed 162 | . 9 1 14 3 . 7 30 45 29 3 15 . . 6 Melee 10 | . . . . . . . . 1 2 . 1 . . 6 Guns 71 | . 4 1 14 3 . 4 16 17 10 . 2 . . . Cannons 42 | . 5 . . . . . . 21 11 1 4 . . . AOE 32 | . . . . . . 3 14 3 3 1 8 . . . Classes Destroyed 19 | 3 4 1 2 . . . 2 5 1 . . . . 1 Worker 34 | 2 2 2 1 . . 1 6 7 10 . 3 . . . Builder 15 | . . . 1 . . . 3 7 2 . 1 . 1 . Tunneler 8 | 2 . . . 2 . . . 3 . . 1 . . . Hauler 11 | . . . 2 . . . 4 3 1 . 1 . . . Recycler 46 | 1 2 . 2 1 . . 1 32 4 1 2 . . . Mechanic 3 | . . . . . . . . 2 . 1 . . . . Operator 6 | . 1 . 1 . . . 1 2 . . 1 . . . Watcher 18 | . 1 . 4 . . . 3 6 2 2 . . . . Swarmer 34 | . 7 . 4 . . 4 11 3 . . 5 . . . Cutter 2 | . . . . . . . . . . . . . . 2 Grunt 75 | . 2 . 4 3 . 3 10 26 17 . 7 . . 3 Brawler 4 | . . . . . . . . 2 2 . . . . . Duelist 4 | . . . . . . . . 3 1 . . . . . Protector 4 | . . . . . . . . 2 2 . . . . . Sentry 21 | . . 1 6 . . . 6 4 1 1 2 . . . Specialist 3 | . . . . . . . 2 . . . . . . 1 Hunter 5 | . . . . . . . 1 3 1 . . . . . Programmer 9 | . . . . . . . . 2 4 2 1 . . . Behemoth 1 | . . . . . . . . . 1 . . . . . Best Kill Streak 21 | 3 4 2 6 3 . 4 21 10 4 2 7 . 1 3 Combat Bots Only 16 | . 4 1 4 2 . 4 16 5 4 2 6 . . 3 Max Kills in Single Turn 5 | 1 1 1 2 1 . 2 5 2 3 1 5 . 1 1 Gunslinging 1 | . . . 1 . . . . . . . . . . . Exploded 5 | . . . . . . 2 4 1 1 1 5 . . . Melee 1 | . . . . . . . . 1 1 . 1 . . 1 Uniques/NPCs Destroyed . | . . . . . . . . . . . . . . . Combat | -11 -10 -10 -9 -9 -9 -8 -8 -7 -6 -5 -4 -4 -4 -4 -------- Run | Yrd Mat Min Mat Min Exi Min Mat Fac Fac Fac Fac Was Fac DSF Hostile Shots Fired 1468 | . 49 4 61 10 . 31 85 353 408 20 273 . . 174 Missed 498 | . 13 . 21 5 . 10 25 108 138 8 107 . . 63 Damage Taken 15261 | . 315 57 561 63 . 208 970 3622 3867 290 3879 . . 1429 Core 2661 | . 70 13 55 . . 45 161 433 660 60 953 . . 211 Absorbed by Shields 989 | . . . . . . . . . 596 . 141 . . 252 Redirected to Shielding 215 | . . . . . . . . 44 11 . 104 . . 56 Regen/Repaired (Parts) 273 | . . . . . . . 170 103 . . . . . . Core Remaining (%) 66 | 100 . 66 . . . 75 70 38 22 94 . . . . Volleys Fired 697 | 15 60 5 43 13 . 11 68 256 112 16 63 . 18 17 Largest 3 | 2 2 2 3 3 . 3 3 3 3 2 3 . 1 2 Hottest 216 | 40 100 40 109 102 . 112 121 183 210 155 216 . 85 150 Shots Fired 1625 | 30 119 10 129 33 . 31 179 609 301 22 123 . 19 20 Gun 998 | 30 80 10 129 33 . 25 164 331 166 . 30 . . . Cannon 585 | . 38 . . . . . . 270 130 20 88 . 19 20 Launcher 41 | . . . . . . 6 15 8 5 2 5 . . . Special 1 | . 1 . . . . . . . . . . . . . Kinetic 844 | 30 118 10 86 20 . 14 105 222 166 . 69 . . 4 Thermal 727 | . 1 . 43 13 . 11 59 379 126 18 42 . 19 16 Explosive 31 | . . . . . . 6 15 2 1 2 5 . . . Electromagnetic 23 | . . . . . . . . 6 8 2 7 . . . Robot Hit Streak 15 | 5 8 4 15 7 . 7 11 15 9 3 8 . . 6 Robot Miss Streak 10 | 2 4 1 4 2 . 6 5 10 3 1 6 . . 1 Penetration Max 1 | . . . . . . . 1 1 1 . 1 . . . Secondary Targets 6 | . . . 2 1 . . 2 . 1 . . . . . Max Gunslinging Chain 1 | . . . 1 1 . . 1 . 1 . . . . . Shots Hit Robots 930 | 17 66 7 79 23 . 13 94 352 173 15 73 . 2 16 Core Hits 513 | 7 23 5 37 9 . 13 81 189 84 7 50 . . 8 Critical Kills 12 | . . . 1 . . . 1 3 4 1 2 . . . Critical Parts Destroyed 11 | . . . . . . . . 2 9 . . . . . Critical Strikes 53 | . 1 . 4 1 . 1 2 16 13 1 11 . 1 2 Burn 12 | . . . 3 1 . 1 1 6 . . . . . . Meltdown 7 | . . . . . . . . 1 4 1 1 . . . Destroy 16 | . . . 1 . . . 1 4 9 . 1 . . . Blast 11 | . 1 . . . . . . 4 . . 6 . . . Corrupt 1 | . . . . . . . . . . . 1 . . . Sever 1 | . . . . . . . . 1 . . . . . . Impale 5 | . . . . . . . . . . . 2 . 1 2 Melee Attacks 83 | . . . . . . . . 14 20 7 23 . 4 15 Impact . | . . . . . . . . . . . . . . . Slashing 41 | . . . . . . . . 14 20 7 . . . . Piercing 42 | . . . . . . . . . . . 23 . 4 15 Sneak Attacks 23 | . . . . . . . . 9 8 2 2 . 2 . Combat Hostiles . | . . . . . . . . . . . . . . . Follow-up Attacks . | . . . . . . . . . . . . . . . Damage Inflicted 27891 | 196 864 76 1265 350 . 638 2739 10466 6197 617 3751 . 169 563 Guns 10854 | 196 518 76 1265 350 . 213 1494 4062 2252 . 428 . . . Cannons 9054 | . 346 . . . . . . 4679 2225 282 1366 . . 156 Explosions 4884 | . . . . . . 425 1245 1034 815 70 1295 . . . Melee 3099 | . . . . . . . . 691 905 265 662 . 169 407 Ramming . | . . . . . . . . . . . . . . . Kinetic 9903 | 196 864 76 833 204 . 110 1004 3070 2252 . 1260 . . 34 Thermal 10574 | . . . 432 146 . 103 490 5770 2292 276 943 . . 122 Explosive 2910 | . . . . . . 425 1245 52 531 70 587 . . . Electromagnetic 1405 | . . . . . . . . 883 217 6 299 . . . Impact . | . . . . . . . . . . . . . . . Slashing 1861 | . . . . . . . . 691 905 265 . . . . Piercing 1238 | . . . . . . . . . . . 662 . 169 407 Highest Corruption 10 | . . . 2 2 2 2 . 5 9 . 7 7 10 10 Average Corruption 4 | . . . 1 2 2 2 . 4 6 . 5 7 7 10 Corruption Purged 2 | . . . . . . . . 2 . . . . . . Corruption Blocked . | . . . . . . . . . . . . . . . Effects 146 | . . . 5 6 3 6 . 51 37 . 5 3 20 10 Message Errors 31 | . . . . 1 1 2 . 8 8 . 1 . 8 2 Matter Fused 32 | . . . 1 3 1 2 . 7 6 . 1 1 9 1 Heat Flow Errors 18 | . . . 1 . . . . 4 8 . 2 . 1 2 Energy Discharges 23 | . . . . . 1 2 . 13 5 . . . 1 1 Parts Rejected 4 | . . . . . . . . 1 2 . . 1 . . Parts Fused 3 | . . . . . . . . 2 . . . 1 . . Data Loss (minor) 17 | . . . 2 1 . . . 8 3 . . . . 3 Data Loss (major) 2 | . . . . . . . . 1 1 . . . . . Misfires 5 | . . . . . . . . 3 1 . . . 1 . Alerts 4 | . . . 1 1 . . . 1 1 . . . . . Weapon Failures 7 | . . . . . . . . 3 2 . 1 . . 1 Overload Shots 47 | . . . . . . . . 26 15 4 2 . . . Effects 5 | . . . . . . . . 3 1 . 1 . . . Energy Bleed 1 | . . . . . . . . 1 . . . . . . Heat Surge 3 | . . . . . . . . 1 1 . 1 . . . Short Circuit 1 | . . . . . . . . 1 . . . . . . Overflow Damage 909 | . 19 . . . . . 2 231 323 46 106 . 182 . Projectiles 220 | . 19 . . . . . . 47 104 . 50 . . . Explosions 189 | . . . . . . . 2 49 82 . 56 . . . Melee 500 | . . . . . . . . 135 137 46 . . 182 . Knockbacks 20 | . 4 . . . . . . 8 . . 7 . . 1 Impact . | . . . . . . . . . . . . . . . Kinetic 18 | . 3 . . . . . . 7 . . 7 . . 1 Secondary 2 | . 1 . . . . . . 1 . . . . . . Self-Inflicted Damage 216 | . . . . . . . . 10 178 . 28 . . . Shots 7 | . . . . . . . . 1 5 . 1 . . . Rammed . | . . . . . . . . . . . . . . . Targets Rammed . | . . . . . . . . . . . . . . . Kicked . | . . . . . . . . . . . . . . . Crushed . | . . . . . . . . . . . . . . . Highest Temperature 567 | . 20 9 278 222 . 208 303 567 357 123 299 . 339 161 Average Temperature 99 | . 5 3 53 82 . 92 75 130 106 34 77 . 116 104 Received Heat Transfer 4165 | . 48 18 126 33 . 45 378 1206 1330 18 804 . . 159 Effects 24 | . . . . . . . . 18 5 . 1 . . . Shutdowns 5 | . . . . . . . . 4 1 . . . . . Energy Bleed 2 | . . . . . . . . 1 . . 1 . . . Interference 9 | . . . . . . . . 6 3 . . . . . Matter Decay 2 | . . . . . . . . 2 . . . . . . Short Circuit 3 | . . . . . . . . 2 1 . . . . . Damage (minor) 3 | . . . . . . . . 3 . . . . . . Siege Activations . | . . . . . . . . . . . . . . . Robots Corrupted 2 | . . . . . . . . 2 . . . . . . Combat Hostiles 2 | . . . . . . . . 2 . . . . . . Parts Fried 10 | . . . . . . . . 10 . . . . . . Impact Corruptions 1 | . 1 . . . . . . . . . . . . . Robots Melted 7 | . . . . . . . . 1 4 1 1 . . . Combat Hostiles 5 | . . . . . . . . 1 3 1 . . . . Parts Melted 23 | . . . 2 . . 1 1 9 7 3 . . . . Heat Transferred 15838 | . . . 1258 444 . 333 1258 8284 2856 335 922 . . 148 Parts Sabotaged 13 | . . . . . . . . . 10 . 3 . . . Parts Stolen . | . . . . . . . . . . . . . . . Parts Stripped . | . . . . . . . . . . . . . . . Power Chain Reactions 2 | . . . . . . . . . 2 . . . . . Alert | -11 -10 -10 -9 -9 -9 -8 -8 -7 -6 -5 -4 -4 -4 -4 ------- Run | Yrd Mat Min Mat Min Exi Min Mat Fac Fac Fac Fac Was Fac DSF Peak Influence 1821 | 25 218 129 421 244 . 199 820 1741 1821 1065 1216 445 345 268 Initial 1100 | . 16 84 50 139 . . 77 341 1100 882 434 430 311 132 Average 677 | 7 116 119 193 162 . 95 358 944 1442 946 880 437 257 180 Maximum Alert Level 5 | . 1 . 2 1 . . 3 5 5 3 4 2 1 1 Low Security (%) 28 | 100 86 100 61 44 . 100 47 1 . . . . 39 73 Level 1 16 | . 13 . 32 55 . . 10 16 . . . . 60 26 Level 2 9 | . . . 6 . . . 15 19 . . 12 100 . . Level 3 17 | . . . . . . . 25 15 . 100 79 . . . Level 4 21 | . . . . . . . . 41 65 . 8 . . . Level 5 5 | . . . . . . . . 3 33 . . . . . High Security . | . . . . . . . . 1 . . . . . . Max Security . | . . . . . . . . . . . . . . . Squads Dispatched 54 | . 4 . 4 . . . 6 14 14 2 6 . 1 3 Investigation 8 | . 1 . 2 . . . 1 2 1 . 1 . . . Extermination 9 | . . . . . . . . 3 3 1 1 . 1 . Reinforcement 20 | . 3 . 2 . . . 4 4 2 . 2 . . 3 Assault 14 | . . . . . . . 1 5 5 1 2 . . . Garrison 3 | . . . . . . . . . 3 . . . . . Intercept . | . . . . . . . . . . . . . . . Searches Triggered . | . . . . . . . . . . . . . . . Construction Impeded 3 | . . . . . . . 1 1 1 . . . . . Haulers Reinforced 2 | . . . . . . . . 1 . . 1 . . . Active Scanning Responses . | . . . . . . . . . . . . . . . Cargo Convoy Interrupts . | . . . . . . . . . . . . . . . Stealth | -11 -10 -10 -9 -9 -9 -8 -8 -7 -6 -5 -4 -4 -4 -4 --------- Run | Yrd Mat Min Mat Min Exi Min Mat Fac Fac Fac Fac Was Fac DSF Distress Signals 11 | . 1 . . . . . 3 4 2 . 1 . . . Communications Jammed 7 | . . . . . . . . . . 5 2 . . . Distress Signals 7 | . . . . . . . . . . 5 2 . . . Times Spotted 344 | . 20 1 20 4 . 7 39 94 77 7 53 5 . 17 Peak Tracking Total 12 | . 3 1 4 3 . 4 7 7 10 2 12 5 1 8 Tactical Retreats 48 | . . . . 1 . . 2 9 20 1 12 . . 3 Traps | -11 -10 -10 -9 -9 -9 -8 -8 -7 -6 -5 -4 -4 -4 -4 ------- Run | Yrd Mat Min Mat Min Exi Min Mat Fac Fac Fac Fac Was Fac DSF Traps Triggered 14 | . 1 . 3 1 . . 2 4 . 1 1 . 1 . Indirectly . | . . . . . . . . . . . . . . . Trap Hack Attempts . | . . . . . . . . . . . . . . . Triggered . | . . . . . . . . . . . . . . . Disarmed . | . . . . . . . . . . . . . . . Reprogrammed . | . . . . . . . . . . . . . . . Reused 21 | . . . . . . . 1 13 7 . . . . . Traps Reconfigurated 49 | . . . . . . . 8 23 12 . 1 . 3 2 Traps Extracted 16 | . . . . . . . 6 6 4 . . . . . Installed 15 | . . . . . . . . 11 4 . . . . . Triggered 22 | . . . . . . . 1 14 7 . . . . . Most Traps Carried 6 | . . . . . . . 6 6 4 . . . . . Machines | -11 -10 -10 -9 -9 -9 -8 -8 -7 -6 -5 -4 -4 -4 -4 ---------- Run | Yrd Mat Min Mat Min Exi Min Mat Fac Fac Fac Fac Was Fac DSF Machines Disabled 47 | . 1 . 1 . . . 3 12 13 . 16 . 1 . Max in Single Turn 5 | . 1 . 1 . . . 1 2 2 . 5 . 1 . Garrison Access 3 | . . . . . . . 1 2 . . . . . . Machines Repaired . | . . . . . . . . . . . . . . . Machines Dismantled . | . . . . . . . . . . . . . . . Machines Sabotaged . | . . . . . . . . . . . . . . . Overloaded Fab Kills . | . . . . . . . . . . . . . . . Hacking | -11 -10 -10 -9 -9 -9 -8 -8 -7 -6 -5 -4 -4 -4 -4 --------- Run | Yrd Mat Min Mat Min Exi Min Mat Fac Fac Fac Fac Was Fac DSF Machines Accessed 56 | . 5 . 8 2 3 . 14 13 2 1 4 . 4 . Terminals 29 | . 5 . 6 . . . 8 5 . . 3 . 2 . Fabricators 3 | . . . . . . . . 2 1 . . . . . Repair Stations 5 | . . . . . . . 2 1 . 1 . . 1 . Recycling Units 4 | . . . . . . . 2 1 1 . . . . . Scanalyzers 7 | . . . 2 . . . 1 2 . . 1 . 1 . Garrison Access 3 | . . . . . . . 1 2 . . . . . . Total Hacks 179 | . 18 . 33 2 7 . 51 38 4 3 12 . 11 . Successful 109 | . 9 . 16 2 7 . 34 22 4 2 9 . 4 . Failed 70 | . 9 . 17 . . . 17 16 . 1 3 . 7 . Catastrophic 11 | . 2 . 3 . . . 2 2 . . 1 . 1 . Database Lockouts . | . . . . . . . . . . . . . . . Manual 75 | . 10 3 18 . 1 . 23 9 1 . 7 . 3 . Terminals 94 | . 18 . 23 . . . 30 8 . . 10 . 5 . Fabricators 5 | . . . . . . . . 3 2 . . . . . Repair Stations 17 | . . . . . . . 8 3 . 3 . . 3 . Recycling Units 6 | . . . . . . . 2 2 2 . . . . . Scanalyzers 42 | . . . 10 . . . 10 17 . . 2 . 3 . Garrison Access 6 | . . . . . . . 1 5 . . . . . . Terminal Hacks 35 | . 6 . 4 2 7 . 8 1 . . 5 . 2 . Record 7 | . . . . . 6 . . . . . 1 . . . Part Schematic 1 | . . . 1 . . . . . . . . . . . Robot Analysis 4 | . 2 . . . . . 2 . . . . . . . Open Door 2 | . . . . 2 . . . . . . . . . . Open DSF 1 | . . . . . . . . . . . . . 1 . Branch Access Points 2 | . 1 . . . . . . . . . 1 . . . Emergency Access Points 1 | . . . . . . . 1 . . . . . . . Terminal Index 3 | . . . 1 . . . . 1 . . 1 . . . Scanalyzer Index 1 | . . . . . . . 1 . . . . . . . Alert Level 3 | . . . 1 . . . 2 . . . . . . . Locate Traps 3 | . . . . . . . 1 . . . 1 . 1 . Dispatch Records 1 | . . . 1 . . . . . . . . . . . Reinforcement Status 1 | . 1 . . . . . . . . . . . . . Recall Reinforcements 1 | . 1 . . . . . . . . . . . . . Hauler Manifests 2 | . 1 . . . . . 1 . . . . . . . Zone Layout 1 | . . . . . . . . . . . 1 . . . Derelict Proto ID Bank 1 | . . . . . 1 . . . . . . . . . Fabricator Hacks 2 | . . . . . . . . . 2 . . . . . Load Schematic 1 | . . . . . . . . . 1 . . . . . Build 1 | . . . . . . . . . 1 . . . . . Repair Station Hacks 10 | . . . . . . . 5 2 . 2 . . 1 . Scan Component 6 | . . . . . . . 3 1 . 1 . . 1 . Repair 3 | . . . . . . . 2 1 . . . . . . Refit 1 | . . . . . . . . . . 1 . . . . Recycling Unit Hacks 4 | . . . . . . . 2 1 1 . . . . . Report Inventory 3 | . . . . . . . 2 1 . . . . . . Retrieve Components 1 | . . . . . . . . . 1 . . . . . Scanalyzer 34 | . . . 7 . . . 10 15 . . 2 . . . Insert Component 14 | . . . 3 . . . 4 6 . . 1 . . . Analyze 20 | . . . 4 . . . 6 9 . . 1 . . . Garrison Access Hacks 3 | . . . . . . . 1 2 . . . . . . Seal Access 3 | . . . . . . . 1 2 . . . . . . Unauthorized Hacks 21 | . 3 . 5 . . . 8 1 1 . 2 . 1 . Terminals 20 | . 3 . 5 . . . 8 1 . . 2 . 1 . Botnet 20 | . 3 . 5 . . . 8 1 . . 2 . 1 . Fabricators . | . . . . . . . . . . . . . . . Repair Stations . | . . . . . . . . . . . . . . . Recycling Units 1 | . . . . . . . . . 1 . . . . . Mask 1 | . . . . . . . . . 1 . . . . . Scanalyzers . | . . . . . . . . . . . . . . . Garrison Access . | . . . . . . . . . . . . . . . Data Cores Recovered . | . . . . . . . . . . . . . . . Used . | . . . . . . . . . . . . . . . Hacking Detections 44 | . 5 1 8 . . . 10 10 2 1 4 . 3 . Full Trace Events 8 | . . . 2 . . . 2 2 1 . 1 . . . Feedback Events 1 | . . . 1 . . . . . . . . . . . Corruption 1 | . . . 1 . . . . . . . . . . . Feedback Blocked . | . . . . . . . . . . . . . . . Robot Schematics Acquired . | . . . . . . . . . . . . . . . Robots Built . | . . . . . . . . . . . . . . . Authchips . | . . . . . . . . . . . . . . . Time . | . . . . . . . . . . . . . . . Total Robot Build Rating . | . . . . . . . . . . . . . . . Part Schematics Acquired 15 | . . . 4 . . . 4 6 . . 1 . . . Parts Built 1 | . . . . . . . . . 1 . . . . . Authchips . | . . . . . . . . . . . . . . . Time 134 | . . . . . . . . . 134 . . . . . Total Part Build Rating 4 | . . . . . . . . . 4 . . . . . Parts Repaired 3 | . . . . . . . 2 1 . . . . . . Time 134 | . . . . . . . 64 70 . . . . . . Parts Recycled . | . . . . . . . . . . . . . . . Recycled Matter . | . . . . . . . . . . . . . . . Retrieved Matter . | . . . . . . . . . . . . . . . Retrieved Components 2 | . . . . . . . . . 2 . . . . . Parts Scanalyzed 14 | . . . 3 . . . 4 6 . . 1 . . . Part Schematics Acquired 14 | . . . 3 . . . 4 6 . . 1 . . . Parts Damaged . | . . . . . . . . . . . . . . . Bothacking | -11 -10 -10 -9 -9 -9 -8 -8 -7 -6 -5 -4 -4 -4 -4 ------------ Run | Yrd Mat Min Mat Min Exi Min Mat Fac Fac Fac Fac Was Fac DSF Used RIF Installer . | . . . . . . . . . . . . . . . Robots Hacked . | . . . . . . . . . . . . . . . Non-combat . | . . . . . . . . . . . . . . . Combat . | . . . . . . . . . . . . . . . Robot Hacks Applied . | . . . . . . . . . . . . . . . Relay Couplers Released . | . . . . . . . . . . . . . . . Fabnet Peak Effective % . | . . . . . . . . . . . . . . . Robots Rewired . | . . . . . . . . . . . . . . . Allies Hacked . | . . . . . . . . . . . . . . . Hacks Repelled . | . . . . . . . . . . . . . . . Allies | -11 -10 -10 -9 -9 -9 -8 -8 -7 -6 -5 -4 -4 -4 -4 -------- Run | Yrd Mat Min Mat Min Exi Min Mat Fac Fac Fac Fac Was Fac DSF Total Allies . | . . . . . . . . . . . . . . . Largest Group . | . . . . . . . . . . . . . . . Highest-Rated Group . | . . . . . . . . . . . . . . . Highest-Rated Ally . | . . . . . . . . . . . . . . . Total Orders 4 | . . . . . . . 4 . . . . . . . STAY 1 | . . . . . . . 1 . . . . . . . FOLLOW 1 | . . . . . . . 1 . . . . . . . EXPLORE 1 | . . . . . . . 1 . . . . . . . RETURN 1 | . . . . . . . 1 . . . . . . . Ally Attacks 63 | . . . . . . . 10 50 3 . . . . . Total Damage 285 | . . . . . . . 54 225 6 . . . . . Kills . | . . . . . . . . . . . . . . . Allies Corrupted . | . . . . . . . . . . . . . . . Allies Melted . | . . . . . . . . . . . . . . . Intel | -11 -10 -10 -9 -9 -9 -8 -8 -7 -6 -5 -4 -4 -4 -4 ------- Run | Yrd Mat Min Mat Min Exi Min Mat Fac Fac Fac Fac Was Fac DSF Robot Analysis Total 4 | . 2 . . . . . 2 . . . . . . . Derelict Logs Recovered 1 | . . . . 1 . . . . . . . . . . Drone Launches 19 | . . . . . . . 5 12 2 . . . . . Drone Recoveries 16 | . . . . . . . 5 10 1 . . . . . Exploration | -11 -10 -10 -9 -9 -9 -8 -8 -7 -6 -5 -4 -4 -4 -4 ------------- Run | Yrd Mat Min Mat Min Exi Min Mat Fac Fac Fac Fac Was Fac DSF Turns Passed 12194 | 117 739 158 1033 656 395 349 1265 3385 1640 467 957 50 661 322 Spaces Moved 8367 | 56 467 106 718 478 322 242 779 1979 1021 556 782 90 643 128 Core 244 | 7 . . . . . . . . 1 . 51 90 95 . Treads . | . . . . . . . . . . . . . . . Legs 91 | . . . . . . . . . 17 . . . 74 . Wheels 5896 | 49 467 106 718 478 322 242 779 1964 759 11 . . . 1 Hover 1646 | . . . . . . . . . 148 166 731 . 474 127 Flight 490 | . . . . . . . . 15 96 379 . . . . Fastest Speed 24 | 50 100 105 110 110 110 125 98 101 24 27 50 50 50 50 Average Speed 96 | 93 104 105 112 124 120 125 111 109 92 58 63 50 66 74 Slowest Speed 1160 | 100 115 105 155 125 125 125 125 1160 150 180 131 50 180 130 Overloaded Moves 190 | . . . . . . . . . 110 47 33 . . . Propulsion Burnouts . | . . . . . . . . . . . . . . . Robots Hopped 4 | . . . . . . . . . 3 1 . . . . Cave-ins Triggered 1 | . . . . . . . . . . . 1 . . . Exploration Rate (%) 46 | 5 78 25 67 91 65 64 68 52 24 8 15 72 10 52 Regions Visited 14 Branch Regions 4 Pre-discovered Areas . | . . . . . . . . . . . . . . . Known Exits Taken 8 | . 1 . 1 1 1 1 . 1 . 1 . . 1 . Unknown Exits Taken 4 | 1 . 1 . . . . 1 . 1 . . . . . Scrap Searched 3 | . . 1 . 2 . . . . . . . . . . Spaces Dug 86 | . . . . . . . . 25 10 3 21 . 18 9 Terrain Destroyed 469 | . . . . . . 42 78 88 102 16 113 . 18 12 Melee 10 | . . . . . . . . 3 1 . 5 . . 1 Projectile 175 | . . . . . . . . 50 53 5 38 . 18 11 AOE 284 | . . . . . . 42 78 35 48 11 70 . . . Terrain Rammed . | . . . . . . . . . . . . . . . Walls Destroyed . | . . . . . . . . . . . . . . . Machines Disabled . | . . . . . . . . . . . . . . . Actions | -11 -10 -10 -9 -9 -9 -8 -8 -7 -6 -5 -4 -4 -4 -4 --------- Run | Yrd Mat Min Mat Min Exi Min Mat Fac Fac Fac Fac Was Fac DSF Total 10950 | 93 606 145 850 511 331 264 1034 2670 1437 663 1096 93 849 308 Wait 1051 | . 44 17 24 8 . 4 106 233 154 30 160 2 140 129 Move 8346 | 55 466 105 717 477 321 241 778 1978 1014 553 782 89 642 128 Hop 4 | . . . . . . . . . 3 1 . . . . Pick Up 160 | 15 16 9 14 3 2 2 19 18 21 12 16 . 11 2 Fast Attach 146 | 1 2 1 7 3 3 . 14 26 42 11 13 2 14 7 Attach 76 | 6 1 . 3 . . . 2 14 21 7 14 . 7 1 Detach 17 | . . . . . . . . 5 3 4 1 . 3 1 Swap 160 | . 6 2 17 3 . 4 21 67 20 8 10 . . 2 Drop 196 | 1 11 6 25 4 5 2 26 48 23 14 15 . 10 6 Fire 697 | 15 60 5 43 13 . 11 68 256 112 16 63 . 18 17 Melee 82 | . . . . . . . . 14 20 7 22 . 4 15 Ram . | . . . . . . . . . . . . . . . Kick . | . . . . . . . . . . . . . . . Crush . | . . . . . . . . . . . . . . . Escape Stasis . | . . . . . . . . . . . . . . . Rewire . | . . . . . . . . . . . . . . . Trap 15 | . . . . . . . . 11 4 . . . . . Miscellaneous . | . . . . . . . . . . . . . . . Route ------- -11/Scrapyard -10/Materials (discovered 4 exits: *Mat x3 / *Min) -10/Mines -9/Materials (discovered 3 exits: *Mat x2 / *Min) -9/Mines (discovered 2 exits: *Mat / *Exi) -9/Exiles -8/Mines -8/Materials -7/Factory (discovered 2 exits: *Fac x2) -6/Factory -5/Factory -4/Factory (discovered 3 exits: Upp x2 / Arm) -4/Waste -4/Factory -4/DSF History --------- Turn | Location | Event 20 | -11/Scrapyard | Discovered new exit (range 16) 118 | -11/Scrapyard | Entered Materials 307 | -10/Materials | Build established: Mutant 353 | -10/Materials | Discovered new exit (range 15) 544 | -10/Materials | Discovered new exit (range 4) 650 | -10/Materials | Identified exit to Mines 661 | -10/Materials | Discovered new exit (range 15) 857 | -10/Materials | Entered Mines 865 | -10/Mines | Joined a pair of Derelicts in attacking an 0b10 outpost 1004 | -10/Mines | Discovered new exit (range 10) 1015 | -10/Mines | Entered Materials 1015 | -9/Materials | Evolved 2 slots: Utility x1, Weapon x1 1289 | -9/Materials | Discovered new exit (range 4) 1330 | -9/Materials | Build established: Scavenger-Tank 1842 | -9/Materials | Discovered new exit (range 4) 1875 | -9/Materials | Identified exit to Materials 2010 | -9/Materials | Discovered new exit (range 12) 2047 | -9/Materials | Identified exit to Mines 2048 | -9/Materials | Entered Mines 2062 | -9/Mines | Met a Derelict bent on vengeance 2104 | -9/Mines | Discovered exit to Materials (range 6) 2222 | -9/Mines | Met a Derelict who couldn't figure out how to use a Trap Extractor 2374 | -9/Mines | Learned 2 Materials zone layouts 2380 | -9/Mines | Found the Drone Emporium 2386 | -9/Mines | Found Prototype Device 2386 | -9/Mines | Identified Thief Drone Bay 2697 | -9/Mines | Deemed a non-threat by the Exiles lab entrance 2697 | -9/Mines | Discovered new exit (range 5) 2701 | -9/Mines | Identified exit to Exiles 2704 | -9/Mines | Entered Exiles 2734 | -9/Exiles | Met 8R-AWN 2756 | -9/Exiles | Met EX-HEX 2817 | -9/Exiles | Met EX-DEC 2842 | -9/Exiles | Visited The Gauntlet 2908 | -9/Exiles | Met EX-BIN 2927 | -9/Exiles | Aligned with FarCom system 2928 | -9/Exiles | Given EX-Vault access code 2964 | -9/Exiles | Opened EX-Vault 2969 | -9/Exiles | Found Trap Reconfigurator 2992 | -9/Exiles | Warned to stay clear of 0b10 Research branches 3084 | -9/Exiles | Discovered new exit (range 14) 3098 | -9/Exiles | Identified exit to Mines 3099 | -9/Exiles | Left Exiles lab with Trap Reconfigurator 3099 | -9/Exiles | Entered Mines 3405 | -8/Mines | Build established: Scavenger-Skirmisher 3430 | -8/Mines | Discovered exit to Materials (range 11) 3448 | -8/Mines | Entered Materials 3448 | -8/Materials | Evolved 2 slots: Propulsion x1, Utility x1 3611 | -8/Materials | Repaired Arm. Wheel? 3746 | -8/Materials | Build established: Scavenger-Tank 3778 | -8/Materials | Repaired Hrd. Light Armor Plating? 4247 | -8/Materials | Discovered new exit (range 9) 4265 | -8/Materials | Destroyed 16 combat bots 4398 | -8/Materials | Build established: Skirmisher 4648 | -8/Materials | First assault squad dispatched 4713 | -8/Materials | Entered Factory 4713 | -7/Factory | Evolved 2 slots: Propulsion x1, Utility x1 4993 | -7/Factory | Noticed a derelict Sapper rigging charges 5603 | -7/Factory | Discovered new exit (range 16) 5913 | -7/Factory | First assault squad dispatched 6399 | -7/Factory | Build established: Scavenger-Tank 6920 | -7/Factory | Discovered new exit (range 13) 7281 | -7/Factory | Core integrity fell below 50% 7703 | -7/Factory | Build established: Scavenger-Mutant 7809 | -7/Factory | Repaired Cld. Particle Cannon 8046 | -7/Factory | High security lockdown imminent 8096 | -7/Factory | Identified exit to Factory 8098 | -7/Factory | Entered another Factory area 8098 | -6/Factory | Evolved 2 slots: Power x1, Propulsion x1 8228 | -6/Factory | Spotted B-75 Beast 8235 | -6/Factory | Destroyed B-75 Beast 8448 | -6/Factory | First assault squad dispatched 8465 | -6/Factory | Fabricated Cld. VTOL Module? 8549 | -6/Factory | Build established: Scavenger-Skirmisher 8659 | -6/Factory | Lost 4 parts (3n1w) 8881 | -6/Factory | Build established: Scavenger-Tank 9185 | -6/Factory | Garrison activated, responded to threat 9377 | -6/Factory | Core integrity fell below 50% 9408 | -6/Factory | Lost 16 parts (2p5n5u4w) 9647 | -6/Factory | Build established: Mutant 9709 | -6/Factory | Discovered new exit (range 13) 9738 | -6/Factory | Entered another Factory area 9738 | -5/Factory | Evolved 2 slots: Utility x2 9846 | -5/Factory | Discovered new exit (range 6) 9957 | -5/Factory | Identified exit to Factory 10038 | -5/Factory | First assault squad dispatched 10205 | -5/Factory | Entered another Factory area 10205 | -4/Factory | Evolved 2 slots: Utility x2 10454 | -4/Factory | Lost 3 parts (1p1n1w) 10613 | -4/Factory | Build established: Scavenger-Skirmisher 10661 | -4/Factory | Found Prototype Processor 10662 | -4/Factory | Identified Exp. Melee Analysis Suite 10705 | -4/Factory | First assault squad dispatched 10872 | -4/Factory | Identified exit to Upper Caves 10872 | -4/Factory | Identified exit to Armory 10949 | -4/Factory | Lost 3 parts (1p1n1u) 11005 | -4/Factory | Crushed by falling debris 11036 | -4/Factory | Lost 7 parts (1p3n2u1w) 11149 | -4/Factory | Core integrity fell below 50% 11159 | -4/Factory | Core integrity fell below 20% 11162 | -4/Factory | Manually triggered Chute Trap 11162 | -4/Factory | Sucked down chute 11162 | -4/Factory | Entered Waste 11163 | -4/Waste | Lost 10 parts (3n5u2w) 11166 | -4/Waste | Spotted C-40 Crusher 11167 | -4/Waste | Spotted C-40 Crusher 11184 | -4/Waste | Spotted C-40 Crusher 11186 | -4/Waste | Spotted C-40 Crusher 11187 | -4/Waste | Spotted C-40 Crusher 11196 | -4/Waste | Discovered new exit (range 21) 11197 | -4/Waste | Spotted C-40 Crusher 11212 | -4/Waste | Entered Factory 11379 | -4/Factory | Build established: Mutant 11713 | -4/Factory | System corruption reached 10% 11812 | -4/Factory | Identified exit to DSF 11873 | -4/Factory | Entered DSF 11906 | -4/DSF | Additional patrols routed to DSF 11973 | -4/DSF | Build established: Infiltrator-Mutant 12128 | -4/DSF | Lost 3 parts (3u) 12195 | -4/DSF | Destroyed by S-27 Virus with Autogun Last Messages --------------- 12164_ System corrupted: Component data lost. 12165_ Penetrated by Slug. 12175_ C-35 Carver knocked back. 12175_ Knocked back. 12175_ C-35 Carver knocked back. 12178_ C-35 Carver destroyed. 12181_ Knocked back. 12181_ C-30 ARC bursts open, deploying its payload. 12181_ S-27 Virus unfolds itself. 12182_ System corrupted: Matter fused (-7). 12182_ ECM Suite destroyed. 12185_ Acquired Force Field. 12189_ Imp. Gravmag System destroyed. 12191_ System corrupted: Phase Cannon failed to cycle. 12191_ S-27 Virus knocked back. 12192_ Phase Cannon destroyed. 12193_ Knocked back. 12194_ Dropped Fusion Reactor. Map ----- +----------------------------------------------------+ | | | | | | | | | | | | | | | | | | | | | | | ?????????????????????????????????????? | | ?????????????????????????????????????? | | ?????????????????????????????????????? | | ?????????????????????????###?????????? | | ?????????????????????????#""?????????? | | ?????????????????????????#"#?????????? | | ????????#########???????##"####??????? | | ????????# #########"""""#??????? | | ????????# [#* #!!##"""""#??????? | | ????????# =!= ![ ""##"#???? | | ????????# ! *% =! * """""#???? | | ????????### /### % # ## = ""####???? | | ??????????# #?# # ### ###??????? | | ????????? ^ ?##"####### ##???????? | | ????????# ^ ??# #???#!@! !#???????? | | ????????# ?# ???#! s!#???????? | | ????????### ##?# ##??#;xss##???????? | | ??????????[ !??# ???#x]s/ #???????? | | ?????????[[ !??# #???# = #???????? | | ?????????[[ !??# #???# #???????? | | ????????### c #?########;; ###??????? | | ??????????#c #?#]]?#!!!##H! !#??????? | | ?????????# ##]]]#!!!## !!##?????? | | ????? s "#?????? | | ????? "% ##?????? | | ????? % %;#?????? | | ??????==## #"!!!# ## !!##?????? | | ?????????## ###!!?# ?# ! #??????? | | ??????????# ??#???####?######??????? | | ??????????! ???????????????????????? | | ??????????! ???????????????????????? | | ??????????! ???????????????????????? | | ??????????? ???????????????????????? | | ?????????????????????????????????????? | | ?????????????????????????????????????? | | ?????????????????????????????????????? | | ?????????????????????????????????????? | | ?????????????????????????????????????? | | ?????????????????????????????????????? | +----------------------------------------------------+ Best States ------------- Heat Dissipation 112 Energy Generation 41 Energy Capacity 700 Matter Stores 300 Matter Capacity 300 Sight Range 22 Robot Scan Range 15 Terrain Scan Density 210 ECM Strength 1 Jamming Range 16 Power Amplification 30 Additional Mass Support 16 Corruption Block 8 Armor Coverage 600 Core Shielding 20 Propulsion Shielding 66 Utility Shielding 90 Evasion (%) 64 Targeting Accuracy 6 Melee Accuracy 12 Target Analysis 9 Offensive Hacking 14 Trap Extractor Capacity 6 Item Schematics ----------------- Imp. Flight Unit | -9/Materials | Scanalyzed Hacking Suite | -9/Materials | Scanalyzed Adv. Visual Processing Unit | -9/Materials | Scanalyzed Hrd. Light Armor Plating | -9/Materials | Hacked ECM Suite | -8/Materials | Scanalyzed Imp. Light Armor Plating | -8/Materials | Scanalyzed Adv. Targeting Computer | -8/Materials | Scanalyzed Imp. Cooling System | -8/Materials | Scanalyzed Cld. Ion Engine | -7/Factory | Scanalyzed Cld. VTOL Module | -7/Factory | Scanalyzed Trap Scanner | -7/Factory | Scanalyzed Imp. Trap Extractor | -7/Factory | Scanalyzed Core Analyzer | -7/Factory | Scanalyzed Chainsword | -7/Factory | Scanalyzed Cmb. Gravmag System | -4/Factory | Scanalyzed Robot Schematics ------------------ None Fabricated ------------ Cld. VTOL Module | x1 | -6/Factory Alien Tech Used ----------------- None Achievements -------------- Dramatic Entrance Wheee! Challenges ------------ None Game ------ Seed PhysicsDeuteriumInverter Manual? 0 Play Time 09:44:16 Cumulative 329.8 hours Start 2024.10.14 @ 22:58:27 End 2024.10.15 @ 10:18:20 Sessions 1 Manual Loads 0 Difficulty Rogue Special Mode None Game No. 137 Rogue 134 Adventurer 3 Explorer 0 Win Type - Total 0 Types 0/0/0/0/0/0/0/0/0 Lore% 25 Gallery% 53 Achievement% 40 Wizard Run 0 Options --------- Layout 2 ASCII 0 Keyboard 0 Movement Mouse Keybinds 0 Fullscreen 1 Font 24/Smallcaps Map View 50x44 Zoom Use 0% Tactical HUD 1 Map Filters NONE Filters NONE Steam 1 RUN: feb0711e-64cb-4840-940d-6d8dd8599308